Cogmind - Beta 14 @@@ ROGUE MODE // 2024.10.12 @ 10:37:35 Player: Awoo-Bot Result: Destroyed by H-55 Commando with Gauss Rifle Performance ------------- Evolutions (2) 1000 Regions Visited (6) 1200 Robots Destroyed (103) 515 Value Destroyed (2216) 2216 Prototype IDs (27) 540 Alien Tech Used (0) 0 Bonus (1671) 1671 TOTAL SCORE: 7142 Bonus ------- High Alert Combat Kills 487 Follower Combat Kills 299 Entered Garrisons 200 Used RIF Installer 500 Aligned with FarCom 300 Friendly Fire -115 Cogmind --------- Core Integrity 0/550 Matter 203/300 Energy 93/100 System Corruption 0% Temperature Cool (0) Movement Core (950) Ox18 Location -8/Garrison Parts ------- > --- POWER (1) -------- (None) > --- PROPULSION (3) --- (None) > --- UTILITY (5) ------ Improved Heat Sink High-capacity Storage Unit Improved Targeting Computer > --- WEAPON (2) ------- Gauss Cannon Gauss Cannon > --- INVENTORY (20) --- Reinforced Ion Engine Nuclear Core Fission Core Light Fission Core Structural Scanner ECM Suite Gatling Laser Gatling Laser Minigun High-powered Shotgun Assault Cannon Assault Cannon Gauss Cannon Gauss Cannon Field Lobotomy Kit (5) Heavy Flail Peak State ------------ > --- POWER ------------ Improved Deuterium Engine > --- PROPULSION ------- Light Treads Light Treads Light Treads > --- UTILITY ---------- Improved Heat Sink High-capacity Storage Unit Improved Targeting Computer Hardened Medium Armor Plating Hardlight Generator > --- WEAPON ----------- Gatling Laser Gauss Cannon > --- INVENTORY -------- Reinforced Ion Engine Nuclear Core Fission Core Light Fission Core Structural Scanner Seismic Detector ECM Suite Shield Generator Gatling Laser Gatling Laser Minigun High-powered Shotgun Assault Cannon Assault Cannon Gauss Cannon Gauss Cannon Gauss Cannon Grenade Launcher Field Lobotomy Kit Heavy Flail [Rating: 33] Favorites ----------- Power Light Ion Engine Engine Light Ion Engine Power Core Light Nuclear Core Propulsion Light Treads Treads Light Treads Leg Aluminum Leg Wheel Compact Wheel Hover Unit Aerolev Unit Flight Unit Surge Thruster Utility High-capacity Storage Unit Device Seismic Detector Storage High-capacity Storage Unit Processor Improved Targeting Computer Protection Hardened Medium Armor Plating Weapon Gauss Cannon Energy Gun Particle Gun Energy Cannon Beam Cannon Ballistic Gun Assault Rifle Ballistic Cannon Gauss Cannon Launcher Grenade Launcher Impact Weapon Heavy Mace Build | -11 -10 -10 -10 -9 -8 -8 ------- Run | Yrd Mat Min Exi Min Mat Gar Slots Evolved 4 | . . . . . 4 . Power . | . . . . . . . Propulsion 1 | . . . . . 1 . Utility 3 | . . . . . 3 . Weapon . | . . . . . . . Parts Attached 119 | 8 35 13 . 13 37 13 Power 8 | 1 1 1 . 2 2 1 Engine 6 | 1 1 1 . 1 1 1 Core 2 | . . . . 1 1 . Reactor . | . . . . . . . Propulsion 23 | 2 2 2 . 1 11 5 Treads 9 | 1 . 1 . 1 3 3 Leg 2 | . . . . . . 2 Wheel 8 | 1 2 1 . . 4 . Hover 1 | . . . . . 1 . Flight 3 | . . . . . 3 . Utility 39 | 2 24 3 . . 6 4 Device 27 | 1 18 2 . . 2 4 Storage 2 | 1 1 . . . . . Processor 1 | . . . . . 1 . Hackware . | . . . . . . . Protection 9 | . 5 1 . . 3 . Artifact . | . . . . . . . Weapon 49 | 3 8 7 . 10 18 3 Energy Gun 8 | 2 1 1 . 1 3 . Energy Cannon 3 | . 1 . . 1 1 . Ballistic Gun 4 | 1 . . . . 3 . Ballistic Cannon 17 | . 4 3 . 4 4 2 Launcher 9 | . . 3 . 3 2 1 Special Weapon . | . . . . . . . Impact Weapon 8 | . 2 . . 1 5 . Slashing Weapon . | . . . . . . . Piercing Weapon . | . . . . . . . Special Melee Weapon . | . . . . . . . Unidentified Prototypes 2 | . . . . . 2 . Parts Lost 24 | . . 3 . 1 6 14 Power 2 | . . . . 1 . 1 Propulsion 11 | . . 2 . . 2 7 Utility 7 | . . 1 . . 2 4 Weapon 4 | . . . . . 2 2 Highest Loss Streak 5 | . . 2 . 1 5 5 To Critical Strikes . | . . . . . . . Average Slot Usage (%) 93 | . 100 100 100 99 96 84 Engine 10 | . 14 14 14 11 6 6 Treads 11 | . 14 14 14 14 8 8 Leg 3 | . . . . . . 8 Wheel 9 | . 14 14 14 14 16 1 Device 15 | . 5 12 14 14 25 18 Storage 11 | . 14 14 14 14 9 9 Processor 3 | . . . . . 3 9 Protection 3 | . 8 1 . . 6 3 Energy Gun 4 | . 1 8 14 3 3 4 Energy Cannon 4 | . 12 5 . 10 3 . Ballistic Cannon 12 | . 11 13 14 13 6 13 Peak Build Rating 33 | 7 9 10 12 14 30 33 Average Rating 18 | 5 8 9 11 12 21 28 On Entrance 11 | . 7 9 10 12 12 30 Naked Turns . | . . . . . . . Heaviest Build 75 | 12 52 52 50 53 66 75 Greatest Support 60 | 20 10 16 16 16 32 60 Greatest Overweight (x) 24 | 1 5 5 3 3 15 24 Average Overweight (x) 3 | . 4 3 3 2 1 3 Largest Inventory Capacity 20 | 8 20 20 20 20 20 20 Average Capacity 19 | 6 19 20 20 20 20 20 Most Carried 20 | 5 20 20 20 20 20 20 Average Carried 17 | 2 15 19 19 19 16 17 Final Capacity 20 | 8 20 20 20 20 20 20 Final Carried 20 | 5 19 20 20 20 20 16 Class Distribution -------------------- 67% | Mutant 31% | Scavenger-Mutant Dominant Class ---------------- Mutant | -10/Materials Mutant | -10/Mines Mutant | -10/Exiles Mutant | -9/Mines Scavenger-Mutant | -8/Materials Scavenger-Mutant | -8/Garrison Resources | -11 -10 -10 -10 -9 -8 -8 ----------- Run | Yrd Mat Min Exi Min Mat Gar Matter Collected 2545 | 239 614 186 . 249 464 793 Remotely . | . . . . . . . Salvage Created 2173 | 28 622 46 . 190 745 542 Parts 190 | 4 34 11 . 27 64 50 Haulers Intercepted 4 | . 2 . . . 2 . Recyclers Shooed 1 | . 1 . . . . . Parts Field Recycled . | . . . . . . . Retrieved Matter . | . . . . . . . Parts Self-Destructed . | . . . . . . . Prevented . | . . . . . . . Kills | -11 -10 -10 -10 -9 -8 -8 ------- Run | Yrd Mat Min Exi Min Mat Gar Combat Hostiles Destroyed 78 | . 12 6 . 12 21 27 Guns 20 | . 1 . . 2 5 12 Cannons 34 | . 9 1 . 4 6 14 AOE 22 | . . 5 . 6 10 1 Classes Destroyed 14 | 1 7 . . 1 1 4 Builder 7 | . 1 . . 1 5 . Tunneler 2 | 1 . . . 1 . . Hauler 4 | . 2 . . . 2 . Recycler 5 | . 2 1 . . 2 . Operator 3 | . 1 . . . 2 . Watcher 3 | . 2 . . . 1 . Swarmer 40 | . 5 6 . 10 8 11 Cutter 3 | . . . . . 3 . Saboteur 2 | . . . . . . 2 Grunt 21 | . 7 . . . 8 6 Protector 1 | . . . . . . 1 Sentry 9 | . . . . 2 2 5 Demolisher 1 | . . . . . . 1 Hunter 2 | . . . . . . 2 Best Kill Streak 7 | 1 4 3 . 7 7 6 Combat Bots Only 7 | . 3 3 . 7 5 6 Max Kills in Single Turn 5 | 1 1 2 . 4 5 2 Gunslinging . | . . . . . . . Exploded 4 | . . 2 . 4 4 1 Melee . | . . . . . . . Uniques/NPCs Destroyed . | . . . . . . . Combat | -11 -10 -10 -10 -9 -8 -8 -------- Run | Yrd Mat Min Exi Min Mat Gar Hostile Shots Fired 469 | . 67 21 . 47 94 240 Missed 132 | . 20 10 . 10 28 64 Damage Taken 3956 | . 489 275 . 330 1004 1858 Core 766 | . 81 37 . 88 189 371 Absorbed by Shields 536 | . . . . . . 536 Core Remaining (%) 58 | 100 . . . 17 . . Volleys Fired 222 | 1 58 8 . 15 61 79 Largest 2 | 2 2 2 . 2 2 2 Hottest 128 | 60 95 95 . 103 112 128 Shots Fired 374 | 2 97 12 . 27 101 135 Gun 93 | 2 18 . . 7 34 32 Cannon 249 | . 79 6 . 11 56 97 Launcher 32 | . . 6 . 9 11 6 Special . | . . . . . . . Kinetic 213 | 1 58 2 . 9 46 97 Thermal 123 | 1 39 4 . 9 38 32 Explosive 32 | . . 6 . 9 11 6 Electromagnetic 6 | . . . . . 6 . Robot Hit Streak 10 | 1 6 2 . 4 6 10 Robot Miss Streak 11 | 1 11 7 . 1 4 6 Penetration Max . | . . . . . . . Secondary Targets . | . . . . . . . Shots Hit Robots 204 | 1 50 2 . 10 61 80 Core Hits 149 | 1 23 11 . 22 48 44 Critical Kills 2 | . 2 . . . . . Critical Parts Destroyed 1 | . . . . . 1 . Critical Strikes 13 | . 4 1 . . 3 5 Burn 1 | . . . . . 1 . Meltdown 2 | . 2 . . . . . Blast 9 | . 2 1 . . 1 5 Smash 1 | . . . . . 1 . Melee Attacks 19 | . 4 . . 3 12 . Impact 19 | . 4 . . 3 12 . Slashing . | . . . . . . . Piercing . | . . . . . . . Sneak Attacks 2 | . . . . . 2 . Combat Hostiles . | . . . . . . . Follow-up Attacks . | . . . . . . . Damage Inflicted 6378 | 10 843 587 . 515 2375 2048 Guns 1097 | 10 138 . . 46 406 497 Cannons 2938 | . 705 53 . 110 738 1332 Explosions 2113 | . . 534 . 351 1009 219 Melee 222 | . . . . . 222 . Ramming 8 | . . . . 8 . . Kinetic 2626 | 10 507 36 . 89 652 1332 Thermal 1576 | . 336 104 . 67 572 497 Explosive 1839 | . . 447 . 351 822 219 Electromagnetic 107 | . . . . . 107 . Impact 222 | . . . . . 222 . Slashing . | . . . . . . . Piercing . | . . . . . . . Highest Corruption . | . . . . . . . Average Corruption . | . . . . . . . Corruption Purged . | . . . . . . . Corruption Blocked . | . . . . . . . Overload Shots . | . . . . . . . Overflow Damage 220 | . . 46 . 9 164 1 Projectiles 13 | . . . . . 12 1 Explosions 101 | . . 46 . 9 46 . Melee 106 | . . . . . 106 . Knockbacks 21 | . 6 . . 2 7 6 Impact . | . . . . . . . Kinetic 21 | . 6 . . 2 7 6 Secondary . | . . . . . . . Self-Inflicted Damage 94 | . . 53 . 41 . . Shots 2 | . . 1 . 1 . . Rammed 2 | . . . . 2 . . Targets Rammed 2 | . . . . 2 . . Kicked . | . . . . . . . Crushed . | . . . . . . . Highest Temperature 232 | . 232 45 . 162 45 229 Average Temperature 62 | . 80 21 . 68 10 56 Received Heat Transfer 972 | . 162 . . . 414 396 Siege Activations . | . . . . . . . Robots Corrupted . | . . . . . . . Combat Hostiles . | . . . . . . . Parts Fried 2 | . . . . . 2 . Impact Corruptions 3 | . . . . . 3 . Robots Melted 2 | . 2 . . . . . Combat Hostiles 2 | . 2 . . . . . Parts Melted 5 | . 1 . . . 2 2 Heat Transferred 3178 | . 717 137 . 148 1051 1125 Parts Sabotaged . | . . . . . . . Parts Stolen . | . . . . . . . Parts Stripped . | . . . . . . . Power Chain Reactions 1 | . . . . . 1 . Alert | -11 -10 -10 -10 -9 -8 -8 ------- Run | Yrd Mat Min Exi Min Mat Gar Peak Influence 2467 | 5 181 218 . 285 498 2467 Initial 287 | . 3 5 . . . 287 Average 529 | 1 44 58 . 73 281 1168 Maximum Alert Level 5 | . . 1 . 1 2 5 Low Security (%) 50 | 100 100 92 . 93 27 . Level 1 10 | . . 7 . 6 60 5 Level 2 13 | . . . . . 11 30 Level 3 7 | . . . . . . 18 Level 4 7 | . . . . . . 18 Level 5 11 | . . . . . . 27 High Security . | . . . . . . . Max Security . | . . . . . . . Squads Dispatched 6 | . 1 . . . 5 . Investigation 1 | . . . . . 1 . Extermination . | . . . . . . . Reinforcement 5 | . 1 . . . 4 . Assault . | . . . . . . . Garrison . | . . . . . . . Intercept . | . . . . . . . Searches Triggered . | . . . . . . . Construction Impeded 1 | . . . . . 1 . Haulers Reinforced . | . . . . . . . Active Scanning Responses . | . . . . . . . Cargo Convoy Interrupts . | . . . . . . . Stealth | -11 -10 -10 -10 -9 -8 -8 --------- Run | Yrd Mat Min Exi Min Mat Gar Distress Signals 3 | . 1 . . . 2 . Communications Jammed . | . . . . . . . Distress Signals . | . . . . . . . Times Spotted 121 | . 23 11 . 18 33 36 Peak Tracking Total 7 | . 4 3 . 7 5 6 Tactical Retreats 5 | . 1 . . 2 1 1 Traps | -11 -10 -10 -10 -9 -8 -8 ------- Run | Yrd Mat Min Exi Min Mat Gar Traps Triggered 5 | . . . . . . 5 Indirectly . | . . . . . . . Trap Hack Attempts . | . . . . . . . Triggered . | . . . . . . . Disarmed . | . . . . . . . Reprogrammed . | . . . . . . . Reused . | . . . . . . . Traps Extracted . | . . . . . . . Installed . | . . . . . . . Triggered . | . . . . . . . Machines | -11 -10 -10 -10 -9 -8 -8 ---------- Run | Yrd Mat Min Exi Min Mat Gar Machines Disabled 5 | . 1 1 . . 2 1 Max in Single Turn 1 | . 1 1 . . 1 1 Machines Repaired . | . . . . . . . Machines Dismantled . | . . . . . . . Machines Sabotaged . | . . . . . . . Overloaded Fab Kills . | . . . . . . . Hacking | -11 -10 -10 -10 -9 -8 -8 --------- Run | Yrd Mat Min Exi Min Mat Gar Machines Accessed 12 | . 5 . 1 . 4 2 Terminals 10 | . 5 . . . 3 2 Fabricators . | . . . . . . . Repair Stations . | . . . . . . . Recycling Units . | . . . . . . . Scanalyzers . | . . . . . . . Garrison Access 1 | . . . . . 1 . Total Hacks 33 | . 22 . 1 . 8 2 Successful 17 | . 11 . 1 . 4 1 Failed 15 | . 10 . . . 4 1 Catastrophic 2 | . . . . . 1 1 Database Lockouts 1 | . 1 . . . . . Manual 29 | . 22 . 1 . 6 . Terminals 31 | . 22 . . . 7 2 Fabricators . | . . . . . . . Repair Stations . | . . . . . . . Recycling Units . | . . . . . . . Scanalyzers . | . . . . . . . Garrison Access 1 | . . . . . 1 . Terminal Hacks 7 | . 3 . 1 . 2 1 Robot Analysis 2 | . 2 . . . . . Prototype ID Bank 1 | . . . . . 1 . Open Door 1 | . . . . . . 1 Garrison Index 1 | . . . . . 1 . Unreport Threat 1 | . 1 . . . . . Derelict Proto ID Bank 1 | . . . 1 . . . Fabricator Hacks . | . . . . . . . Repair Station Hacks . | . . . . . . . Recycling Unit Hacks . | . . . . . . . Scanalyzer . | . . . . . . . Garrison Access Hacks 1 | . . . . . 1 . Unlock Access 1 | . . . . . 1 . Unauthorized Hacks 9 | . 8 . . . 1 . Terminals 9 | . 8 . . . 1 . Botnet 5 | . 4 . . . 1 . Skim 4 | . 4 . . . . . Fabricators . | . . . . . . . Repair Stations . | . . . . . . . Recycling Units . | . . . . . . . Scanalyzers . | . . . . . . . Garrison Access . | . . . . . . . Data Cores Recovered . | . . . . . . . Used . | . . . . . . . Hacking Detections 10 | . 5 . . . 4 1 Full Trace Events 1 | . . . . . 1 . Feedback Events . | . . . . . . . Feedback Blocked . | . . . . . . . Robot Schematics Acquired . | . . . . . . . Robots Built . | . . . . . . . Authchips . | . . . . . . . Time . | . . . . . . . Total Robot Build Rating . | . . . . . . . Part Schematics Acquired . | . . . . . . . Parts Built . | . . . . . . . Authchips . | . . . . . . . Time . | . . . . . . . Total Part Build Rating . | . . . . . . . Parts Repaired . | . . . . . . . Time . | . . . . . . . Parts Recycled . | . . . . . . . Recycled Matter . | . . . . . . . Retrieved Matter . | . . . . . . . Retrieved Components . | . . . . . . . Parts Scanalyzed . | . . . . . . . Part Schematics Acquired . | . . . . . . . Parts Damaged . | . . . . . . . Bothacking | -11 -10 -10 -10 -9 -8 -8 ------------ Run | Yrd Mat Min Exi Min Mat Gar Used RIF Installer 1 | . . . . . . 1 Robots Hacked . | . . . . . . . Non-combat . | . . . . . . . Combat . | . . . . . . . Robot Hacks Applied . | . . . . . . . Relay Couplers Released . | . . . . . . . Fabnet Peak Effective % . | . . . . . . . Robots Rewired 10 | . . . . . . 10 Allies Hacked . | . . . . . . . Hacks Repelled . | . . . . . . . Allies | -11 -10 -10 -10 -9 -8 -8 -------- Run | Yrd Mat Min Exi Min Mat Gar Total Allies 16 | . . 3 . 3 . 10 Largest Group 6 | . . 3 . 3 2 6 Highest-Rated Group 72 | . . 40 . 70 39 72 Highest-Rated Ally 31 | . . 16 . 31 31 31 Total Orders . | . . . . . . . Ally Attacks 75 | . . 9 . 12 25 29 Total Damage 889 | . . 90 . 148 320 331 Kills 15 | . . 3 . 4 2 6 Allies Corrupted . | . . . . . . . Allies Melted . | . . . . . . . Intel | -11 -10 -10 -10 -9 -8 -8 ------- Run | Yrd Mat Min Exi Min Mat Gar Robot Analysis Total 2 | . 2 . . . . . Derelict Logs Recovered 4 | . . 2 . 2 . . Drone Launches . | . . . . . . . Drone Recoveries . | . . . . . . . Exploration | -11 -10 -10 -10 -9 -8 -8 ------------- Run | Yrd Mat Min Exi Min Mat Gar Turns Passed 11055 | 87 1851 1279 811 1833 1052 4142 Spaces Moved 5406 | 62 1063 832 553 1035 623 1238 Core 47 | 1 . . . . 1 45 Treads 434 | 15 . . . . 1 418 Legs 590 | . . . . . . 590 Wheels 4320 | 46 1063 832 553 1035 606 185 Hover 1 | . . . . . 1 . Flight 14 | . . . . . 14 . Fastest Speed 50 | 50 95 140 145 130 110 125 Average Speed 178 | 108 146 145 145 144 121 304 Slowest Speed 1250 | 160 155 155 145 145 800 1250 Overloaded Moves . | . . . . . . . Propulsion Burnouts . | . . . . . . . Robots Hopped . | . . . . . . . Cave-ins Triggered . | . . . . . . . Exploration Rate (%) 70 | 4 99 99 79 102 43 69 Regions Visited 6 Branch Regions 3 Pre-discovered Areas 1 | . . 1 . . . . Known Exits Taken 1 | . . . . . 1 . Unknown Exits Taken 5 | 1 1 1 1 1 . . Scrap Searched 4 | . . 2 . 2 . . Spaces Dug 26 | . 2 . . 14 10 . Terrain Destroyed 191 | . 2 52 . 52 69 16 Melee 13 | . 2 . . 1 10 . Projectile 4 | . . . . . 1 3 AOE 174 | . . 52 . 51 58 13 Terrain Rammed . | . . . . . . . Walls Destroyed . | . . . . . . . Machines Disabled . | . . . . . . . Actions | -11 -10 -10 -10 -9 -8 -8 --------- Run | Yrd Mat Min Exi Min Mat Gar Total 6382 | 75 1241 889 566 1339 800 1472 Wait 361 | . 44 27 . 245 32 13 Move 5400 | 61 1062 831 552 1034 622 1238 Hop . | . . . . . . . Pick Up 72 | 5 24 6 7 10 20 . Fast Attach 21 | 7 . . . 2 8 4 Attach 24 | . . 5 . . 15 4 Detach 2 | . . 1 . . 1 . Swap 74 | 1 35 8 . 11 14 5 Drop 53 | . 14 3 7 12 15 2 Fire 222 | 1 58 8 . 15 61 79 Melee 19 | . 4 . . 3 12 . Ram 2 | . . . . 2 . . Kick . | . . . . . . . Crush . | . . . . . . . Escape Stasis 9 | . . . . . . 9 Rewire 123 | . . . . 5 . 118 Trap . | . . . . . . . Miscellaneous . | . . . . . . . Route ------- -11/Scrapyard -10/Materials (discovered 4 exits: [*Mat x3] / [*Min]) -10/Mines (discovered 3 exits: [*Mat x2] / *Exi) -10/Exiles (discovered 2 exits: [*Min x2]) -9/Mines (discovered 2 exits: *Mat x2) -8/Materials (discovered 4 exits: Fac / [*Sto x2] / Gar) -8/Garrison (discovered 3 exits: [*Mat x3]) History --------- Turn | Location | Event 7 | -11/Scrapyard | Discovered new exit (range 15) 88 | -11/Scrapyard | Entered Materials 319 | -10/Materials | Build established: Mutant 697 | -10/Materials | Discovered new exit (range 16) 840 | -10/Materials | Discovered new exit (range 12) 999 | -10/Materials | Discovered new exit (range 15) 1102 | -10/Materials | Central database locked down 1710 | -10/Materials | Discovered new exit (range 16) 1939 | -10/Materials | Entered Mines 1943 | -10/Mines | Assisted by bots powering up and referring to "LRC-V3" 2046 | -10/Mines | Discovered new exit (range 8) 2106 | -10/Mines | Assembled infested the area 2124 | -10/Mines | Met 8R-AWN 2153 | -10/Mines | YI-UF0 nonchalantly dropped a Grenade Launcher on the ground 2174 | -10/Mines | Lost 3 allies 2783 | -10/Mines | Learned location of Zion (-6) 2856 | -10/Mines | Discovered new exit (range 4) 2949 | -10/Mines | Discovered new exit (range 5) 3218 | -10/Mines | Entered Exiles 3308 | -10/Exiles | Welcomed by 8R-AWN 3350 | -10/Exiles | Discovered new exit (range 14) 3399 | -10/Exiles | Learned about 8R-AWN's background 3473 | -10/Exiles | Met EX-HEX 3518 | -10/Exiles | Met EX-BIN 3538 | -10/Exiles | Aligned with FarCom system 3540 | -10/Exiles | Given EX-Vault access code 3575 | -10/Exiles | Opened EX-Vault 3611 | -10/Exiles | Warned to stay clear of 0b10 Research branches 3643 | -10/Exiles | Found Field Lobotomy Kit 3771 | -10/Exiles | Met EX-DEC 3797 | -10/Exiles | Visited The Gauntlet 4000 | -10/Exiles | Discovered new exit (range 14) 4029 | -10/Exiles | Left Exiles lab with Field Lobotomy Kit 4029 | -10/Exiles | Entered Mines 4029 | -9/Mines | Discovered new exit (range 13) 4087 | -9/Mines | Learned Materials terminal intel 4149 | -9/Mines | Core integrity fell below 50% 4187 | -9/Mines | Destroyed 7 combat bots 4411 | -9/Mines | Core integrity fell below 20% 4440 | -9/Mines | Found DCF Scrap (15 items) 4490 | -9/Mines | Discovered new exit (range 7) 4499 | -9/Mines | Received a Mining Laser from a helpful Derelict 4928 | -9/Mines | Learned location of 1 exit from Materials 5862 | -9/Mines | Entered Materials 5862 | -8/Materials | Accompanied by 2 allies 5862 | -8/Materials | Evolved 4 slots: Propulsion x1, Utility x3 5863 | -8/Materials | Identified exit to Factory 5864 | -8/Materials | Loaded intel: 12 terminal locations 5867 | -8/Materials | Led the pair of lost Derelicts to an unsafe place 6112 | -8/Materials | Discovered new exit (range 10) 6191 | -8/Materials | Build established: Scavenger-Mutant 6580 | -8/Materials | Lost 5 parts (2n1u2w) 6779 | -8/Materials | Discovered new exit (range 5) 6910 | -8/Materials | Identified exit to Garrison 6914 | -8/Materials | Entered Garrison 6970 | -8/Garrison | Triggered checkpoint 7168 | -8/Garrison | Triggered checkpoint 7176 | -8/Garrison | Triggered checkpoint 7532 | -8/Garrison | Build established: Mutant 8046 | -8/Garrison | Build established: Scavenger-Mutant 8167 | -8/Garrison | Discovered new exit (range 13) 8368 | -8/Garrison | Core integrity fell below 50% 8590 | -8/Garrison | Triggered checkpoint 8813 | -8/Garrison | Lost 5 parts (2n1u2w) 8938 | -8/Garrison | Discovered new exit (range 11) 9004 | -8/Garrison | Triggered checkpoint 9041 | -8/Garrison | Build established: Mutant 9425 | -8/Garrison | Build established: Scavenger-Mutant 10024 | -8/Garrison | Triggered checkpoint 10068 | -8/Garrison | Triggered checkpoint 10088 | -8/Garrison | Triggered checkpoint 10092 | -8/Garrison | Lost 5 allies 10095 | -8/Garrison | Discovered new exit (range 10) 10544 | -8/Garrison | Triggered checkpoint 10563 | -8/Garrison | Core integrity fell below 20% 10653 | -8/Garrison | Installed Relay Interface Framework 10850 | -8/Garrison | Build established: Mutant 11056 | -8/Garrison | Destroyed by H-55 Commando with Gauss Rifle Last Messages --------------- 10664_ ALERT: Garrison interior compromised. 10685_ Acquired 54 matter. 10690_ Acquired 2 matter. 10814_ ALERT: Garrison interior compromised. 11029_ Triggered Alarm Trap. 11029_ An alarm sounds. 11031_ Shield Generator destroyed. 11031_ Slug penetrates Y-45 Defender. 11031_ Machine disabled. 11034_ Slug penetrates Y-45 Defender. 11037_ Y-45 Defender destroyed. 11037_ Slug penetrates Wall. 11038_ Slug penetrates Reinforced Barrier. 11040_ Aluminum Leg destroyed. 11040_ Slug penetrates Reinforced Barrier. 11043_ Aluminum Leg destroyed. 11043_ Slug penetrates Y-45 Defender. 11044_ Slug penetrates Reinforced Barrier. 11046_ Y-45 Defender destroyed. 11047_ Slug penetrates Reinforced Barrier. Map ----- +----------------------------------------------------+ | | | | | | | | | | | | | | | | | ?????????????????????????????????????????????????? | | ?????????????????????????????????????????????????? | | ?????????????????????????????????????????????????? | | ?????????????????????????????????????????????????? | | ##???????????????????????????????????????????????? | | #???????????????????????????????????????????????? | | #???????????????????????????????????????????????? | | #???????????????????????????????????????????????? | | #???????????????????????????????????????????????? | | #?????????????????????????################??????? | | ##?????????????????????????# #??????? | | #??????????????????????????# < #??????? | | #????????????##????#####???# #??????? | | ##???????????#""????""" ???# ############??????? | | #???????????#""?????!| #??# #?????????????????? | | %#???????????#"" ?????h%[??# #?????????????????? | | ##???????????#"! #######;### ######????????????? | | ?????????????#"! %%@ #????????????? | | ?????????????# = [%= #????????????? | | ?????????????#"[ #######;## ### #????????????? | | ?????????????#"" ?????h!!### ### #????????????? | | ?????????????#"""????!!"## # # ###??????????? | | ?????????????#"""???"%""?### # # #??????????? | | ?????????????###???#####???# ### #??????????? | | ???????????????????????????# #?#% #??????????? | | ???????????????????????????# #?# ###??????????? | | ???????????????????????????# #?# #????????????? | | ???????????????????????????# #?# #????????????? | | ???????????????????????????# #?# ###??????????? | | ???????????????????????????# #?# #"#??????????? | | ???????????????????????????# #?# "#??????????? | | ??????###################### #?# "#??????????? | | ??????# #?# "#??????????? | | ??????# #?# #"#??????????? | | ??????# #?# ###??????????? | | ??????# ######################?####????????????? | | ??????# #??????????????????????????????????????? | | ??????# #??????????????????????????????????????? | | ??????# #??????????????????????????????????????? | | ??????# #??????????????????????????????????????? | | ####### #??????????????????????????????????????? | | #[=%%## #??????????????????????????????????????? | +----------------------------------------------------+ Best States ------------- Heat Dissipation 45 Energy Generation 16 Energy Capacity 290 Matter Stores 300 Matter Capacity 300 Sight Range 16 Terrain Scan Density 10 Armor Coverage 225 Evasion (%) 44 Targeting Accuracy 6 Recoil Reduction 3 Item Schematics ----------------- None Robot Schematics ------------------ None Fabricated ------------ Nothing Alien Tech Used ----------------- None Achievements -------------- Universal Adapter Challenges ------------ None Game ------ Seed FlightSupersonicSteel Manual? 0 Play Time 01:26:01 Cumulative 77.1 hours Start 2024.10.08 @ 23:03:52 End 2024.10.12 @ 10:37:35 Sessions 7 Manual Loads 0 Difficulty Rogue Special Mode None Game No. 128 Rogue 100 Adventurer 28 Explorer 0 Win Type - Total 0 Types 0/0/0/0/0/0/0/0/0 Lore% 15 Gallery% 29 Achievement% 31 Wizard Run 0 Options --------- Layout 0 ASCII 0 Keyboard 0 Movement Numpad Keybinds 0 Fullscreen 1 Font 36/SmallcapsGlow++ Map View 76x50 Zoom Use 0% Tactical HUD 1 Map Filters NONE Filters NONE Steam 1 RUN: 332f8ed8-a8d2-40b9-a6e5-f494af0ea72e